Cogmind - Beta 15 @@@ ROGUE MODE // 2025.10.09 @ 21:31:53 Player: DietSnapple Result: Self-destructed Performance ------------- Evolutions (3) 1500 Regions Visited (6) 1200 Robots Destroyed (32) 160 Value Destroyed (794) 794 Prototype IDs (2) 40 Alien Tech Used (0) 0 Bonus (0) 0 TOTAL SCORE: 3694 Bonus ------- None Cogmind --------- Core Integrity 700/700 Matter 188/300 Energy 20/100 System Corruption 0% Temperature Cool (6) Movement Flying (34) Location -7/Factory Parts ------- > --- POWER (1) -------- (None) > --- PROPULSION (5) --- Improved Flight Unit Improved Flight Unit Improved Flight Unit > --- UTILITY (5) ------ Structural Scanner Signal Interpreter ECM Suite Hacking Suite Hacking Suite > --- WEAPON (2) ------- Arc Projector > --- INVENTORY (5) ---- Improved Sensor Array Transmission Jammer Utility Shielding Peak State ------------ > --- POWER ------------ (None) > --- PROPULSION ------- Improved Flight Unit Improved Flight Unit Improved Flight Unit Improved Flight Unit > --- UTILITY ---------- Improved Sensor Array Signal Interpreter Hacking Suite Hacking Suite > --- WEAPON ----------- Mini Grenade Launcher Blade Saw > --- INVENTORY -------- Improved Flight Unit Improved Flight Unit Structural Scanner Improved Sensor Array [Rating: 28] Favorites ----------- Power Light Ion Engine Engine Light Ion Engine Propulsion Compact Wheel Treads Light Treads Wheel Compact Wheel Flight Unit Improved Flight Unit Utility Small Storage Unit Device Sensor Array Storage Small Storage Unit Processor Signal Interpreter Hackware Hacking Suite Protection Light Armor Plating Weapon Assault Rifle Energy Gun Small Laser Energy Cannon Ion Burst Cannon Ballistic Gun Assault Rifle Launcher Grenade Launcher Slashing Weapon Blade Saw Build | -11 -10 -10 -9 -9 -8 -7 ------- Run | Yrd Mat Min Mat Sto Mat Fac Slots Evolved 6 | . . . 2 . 2 2 Power . | . . . . . . . Propulsion 3 | . . . . . 2 1 Utility 3 | . . . 2 . . 1 Weapon . | . . . . . . . Parts Attached 39 | 6 2 2 13 4 8 4 Power 4 | 1 1 . 1 . 1 . Engine 4 | 1 1 . 1 . 1 . Core . | . . . . . . . Reactor . | . . . . . . . Propulsion 11 | 2 . . 4 1 2 2 Treads 2 | . . . 2 . . . Leg . | . . . . . . . Wheel 2 | 2 . . . . . . Hover . | . . . . . . . Flight 7 | . . . 2 1 2 2 Utility 13 | 1 1 2 3 2 3 1 Device 4 | . . . 1 . 2 1 Storage 1 | 1 . . . . . . Processor 1 | . . 1 . . . . Hackware 3 | . . . 1 1 1 . Protection 4 | . 1 1 1 1 . . Artifact . | . . . . . . . Weapon 11 | 2 . . 5 1 2 1 Energy Gun 2 | 1 . . . . . 1 Energy Cannon 1 | . . . . 1 . . Ballistic Gun 4 | 1 . . 3 . . . Ballistic Cannon . | . . . . . . . Launcher 3 | . . . 2 . 1 . Special Weapon . | . . . . . . . Impact Weapon . | . . . . . . . Slashing Weapon 1 | . . . . . 1 . Piercing Weapon . | . . . . . . . Special Melee Weapon . | . . . . . . . Unidentified Prototypes 2 | . . . 1 1 . . Parts Lost 21 | . 1 . 8 4 8 . Power 4 | . 1 . 1 1 1 . Propulsion 7 | . . . 3 1 3 . Utility 4 | . . . 1 1 2 . Weapon 6 | . . . 3 1 2 . Highest Loss Streak 5 | . 1 . 2 2 5 . To Critical Strikes 1 | . . . 1 . . . Average Backups 5 | 2 7 7 6 3 4 2 Power . | . . . . . . . Propulsion 1 | 2 2 . 1 1 2 . Utility 3 | . 2 4 3 2 2 2 Weapon 1 | . 1 2 1 . . . Tool/Special . | . . . . . . . Unused Backups 7 | . 1 2 . 2 . 2 Power . | . . . . . . . Propulsion 3 | . 1 2 . . . . Utility 4 | . . . . 2 . 2 Weapon . | . . . . . . . Tool/Special . | . . . . . . . Average Slot Usage (%) 87 | . 98 100 85 79 74 64 Engine 10 | . 13 14 10 4 2 . Treads 2 | . . . 5 . . . Wheel 14 | . 28 28 12 . . . Flight 5 | . . . . 19 33 22 Device 3 | . . . 4 4 3 14 Storage 9 | . 14 14 10 . . . Processor 7 | . . . 11 11 9 7 Hackware 3 | . . . . 22 16 15 Protection 9 | . 12 13 9 6 3 . Energy Gun 4 | . 14 14 . . . 4 Ballistic Gun 8 | . 14 14 7 9 . . Launcher 6 | . . . 12 . 4 . Peak Build Rating 28 | 6 8 8 15 19 28 22 Average Rating 11 | 4 7 7 10 16 21 20 On Entrance 9 | . 6 8 8 15 15 12 Naked Turns . | . . . . . . . Heaviest Build 22 | 11 14 14 22 9 5 7 Greatest Support 40 | 26 26 26 40 10 20 15 Greatest Overweight (x) 5 | . . . 5 . . . Average Overweight (x) . | . . . . . . . Largest Inventory Capacity 8 | 8 8 8 8 5 5 5 Average Capacity 7 | 6 8 8 7 5 5 5 Most Carried 8 | 4 8 8 8 5 5 4 Average Carried 6 | 2 7 7 7 4 4 2 Final Capacity 8 | 8 8 8 5 5 5 5 Final Carried 8 | 4 8 8 5 5 5 3 Class Distribution -------------------- 71% | Mutant 11% | Scavenger-Mutant 9% | Hacker-Mutant 7% | Hacker-Sprinter Dominant Class ---------------- Mutant | -10/Materials Mutant | -10/Mines Mutant | -9/Materials Hacker-Mutant | -9/Storage Hacker-Sprinter | -8/Materials Hacker-Mutant | -7/Factory Resources | -11 -10 -10 -9 -9 -8 -7 ----------- Run | Yrd Mat Min Mat Sto Mat Fac Matter Collected 797 | 260 101 . 413 . 23 . Remotely . | . . . . . . . Salvage Created 973 | . 350 28 528 . 67 . Parts 76 | . 21 3 44 . 8 . Haulers Intercepted 1 | . 1 . . . . . Recyclers Shooed 1 | . . . . . 1 . Parts Field Recycled . | . . . . . . . Retrieved Matter . | . . . . . . . Parts Self-Destructed . | . . . . . . . Prevented . | . . . . . . . Kills | -11 -10 -10 -9 -9 -8 -7 ------- Run | Yrd Mat Min Mat Sto Mat Fac Combat Hostiles Destroyed 27 | . 8 . 15 . 4 . Melee 2 | . . . . . 2 . Guns 23 | . 8 . 15 . . . AOE 2 | . . . . . 2 . Classes Destroyed 7 | . 4 1 2 . . . Builder 1 | . . 1 . . . . Hauler 1 | . 1 . . . . . Operator 3 | . 2 . 1 . . . Swarmer 11 | . 3 . 6 . 2 . Grunt 12 | . 5 . 5 . 2 . Duelist 1 | . . . 1 . . . Sentry 3 | . . . 3 . . . Best Kill Streak 7 | . 3 1 7 . 2 . Combat Bots Only 7 | . 3 . 7 . 2 . Max Kills in Single Turn 1 | . 1 1 1 . 1 . Gunslinging . | . . . . . . . Exploded 1 | . . . . . 1 . Melee 1 | . . . . . 1 . Uniques/NPCs Destroyed . | . . . . . . . Combat | -11 -10 -10 -9 -9 -8 -7 -------- Run | Yrd Mat Min Mat Sto Mat Fac Hostile Shots Fired 305 | . 42 . 107 53 103 . Missed 114 | . 10 . 26 33 45 . Hits 191 | . 32 . 81 20 58 . Melee 7 | . . . 6 1 . . Projectile 184 | . 32 . 75 19 58 . Critical Strikes 9 | . . . 4 1 4 . Damage Taken 2463 | . 387 5 1071 269 731 . Core 895 | . 128 . 206 123 438 . Absorbed by Shields 3 | . . . . 3 . . Core Remaining (%) 46 | 100 . 48 . 17 20 . Volleys Fired 112 | . 33 . 74 . 4 1 Largest 2 | . 2 . 2 . 1 1 Hottest 60 | . 60 . 43 . 30 55 Shots Fired 160 | . 65 . 90 . 4 1 Gun 156 | . 65 . 90 . . 1 Cannon . | . . . . . . . Launcher 4 | . . . . . 4 . Special . | . . . . . . . Kinetic 123 | . 33 . 90 . . . Thermal 32 | . 32 . . . . . Explosive 4 | . . . . . 4 . Electromagnetic 1 | . . . . . . 1 Robot Hit Streak 31 | . 15 . 31 . 3 . Robot Miss Streak 5 | . 5 . 4 . . 1 Penetration Max . | . . . . . . . Secondary Targets 1 | . 1 . . . . . Max Gunslinging Chain 1 | . 1 . . . . . Shots Hit Robots 109 | . 41 . 64 . 4 . Core Hits 56 | . 22 1 26 . 7 . Critical Kills . | . . . . . . . Critical Parts Destroyed 1 | . 1 . . . . . Critical Strikes 1 | . 1 . . . . . Destroy 1 | . 1 . . . . . Melee Attacks 2 | . . . . . 2 . Impact . | . . . . . . . Slashing 2 | . . . . . 2 . Piercing . | . . . . . . . Sneak Attacks . | . . . . . . . Combat Hostiles . | . . . . . . . Follow-up Attacks . | . . . . . . . Damage Inflicted 1747 | . 504 10 888 . 345 . Guns 1370 | . 492 . 878 . . . Cannons . | . . . . . . . Explosions 316 | . . . . . 316 . Melee 29 | . . . . . 29 . Ramming 32 | . 12 10 10 . . . Kinetic 1148 | . 270 . 878 . . . Thermal 222 | . 222 . . . . . Explosive 316 | . . . . . 316 . Electromagnetic . | . . . . . . . Impact . | . . . . . . . Slashing 29 | . . . . . 29 . Piercing . | . . . . . . . Highest Corruption . | . . . . . . . Average Corruption . | . . . . . . . Corruption Purged . | . . . . . . . Corruption Blocked . | . . . . . . . Overload Shots . | . . . . . . . Overflow Damage . | . . . . . . . Projectiles . | . . . . . . . Explosions . | . . . . . . . Melee . | . . . . . . . Knockbacks . | . . . . . . . Impact . | . . . . . . . Kinetic . | . . . . . . . Secondary . | . . . . . . . Self-Inflicted Damage 10 | . 5 5 . . . . Shots . | . . . . . . . Rammed 9 | . 4 1 3 . 1 . Targets Rammed 9 | . 4 1 3 . 1 . Kicked . | . . . . . . . Crushed . | . . . . . . . Highest Temperature 112 | . 112 . 17 3 30 2 Average Temperature 33 | . 37 . 5 3 10 2 Received Heat Transfer 901 | . 141 . 294 124 342 . Siege Activations . | . . . . . . . Martial Activations . | . . . . . . . Shielding Activations . | . . . . . . . Robots Disrupted . | . . . . . . . Combat Hostiles . | . . . . . . . Robots Corrupted . | . . . . . . . Combat Hostiles . | . . . . . . . Parts Fried . | . . . . . . . Impact Corruptions . | . . . . . . . Robots Melted . | . . . . . . . Combat Hostiles . | . . . . . . . Parts Melted 1 | . 1 . . . . . Heat Transferred 500 | . 500 . . . . . Parts Sabotaged . | . . . . . . . Parts Stolen . | . . . . . . . Parts Stripped . | . . . . . . . Power Chain Reactions . | . . . . . . . Alert | -11 -10 -10 -9 -9 -8 -7 ------- Run | Yrd Mat Min Mat Sto Mat Fac Maximum Alert Level 1 | . . . 1 . 1 . Low Security (%) 93 | 100 100 100 90 100 79 100 Level 1 6 | . . . 9 . 20 . Level 2 . | . . . . . . . Level 3 . | . . . . . . . Level 4 . | . . . . . . . Level 5 . | . . . . . . . High Security . | . . . . . . . Max Security . | . . . . . . . Peak Influence 228 | . 65 11 228 126 224 102 Initial 81 | . . 11 . 74 52 81 Average 48 | . 28 1 55 67 83 83 Influence Increases 1171 | . 223 5 401 162 359 21 Destroy 0b10 Robot/C 540 | . 160 . 300 . 80 . Destroy 0b10 Robot/NC 25 | . 15 5 5 . . . Destroy Leader 122 | . 32 . 80 . 10 . Successful Hack 33 | . . . . 12 . 21 Destroy Structure 16 | . 1 . 1 . 14 . Partial Spotted 90 | . 15 . . 15 60 . Lose Combat Pursuer 345 | . . . 15 135 195 . Influence Decreases 1099 | . 193 35 224 213 306 128 Entered New Map 294 | . . 19 . 103 74 98 Time Decay 573 | . 183 16 174 70 100 30 Lost Part 180 | . 10 . 50 40 80 . Purge Threat 52 | . . . . . 52 . Squads Dispatched 11 | . 1 . 3 1 5 1 Investigation 5 | . . . 1 . 3 1 Extermination . | . . . . . . . Reinforcement 6 | . 1 . 2 1 2 . Assault . | . . . . . . . Garrison . | . . . . . . . Intercept . | . . . . . . . Searches Triggered . | . . . . . . . Construction Impeded 1 | . . . . . 1 . Haulers Reinforced . | . . . . . . . Active Scanning Responses . | . . . . . . . Cargo Convoy Interrupts . | . . . . . . . Stealth | -11 -10 -10 -9 -9 -8 -7 --------- Run | Yrd Mat Min Mat Sto Mat Fac Distress Signals 7 | . 1 . 3 2 1 . Communications Jammed . | . . . . . . . Distress Signals . | . . . . . . . Times Spotted 119 | . 16 . 43 16 43 1 Peak Tracking Total 14 | . 5 . 11 14 12 1 Tactical Retreats 9 | . . . 1 3 5 . Traps | -11 -10 -10 -9 -9 -8 -7 ------- Run | Yrd Mat Min Mat Sto Mat Fac Traps Triggered 4 | . 1 . . 1 2 . Indirectly . | . . . . . . . Trap Hack Attempts . | . . . . . . . Triggered . | . . . . . . . Disarmed . | . . . . . . . Reprogrammed . | . . . . . . . Reused . | . . . . . . . Traps Extracted . | . . . . . . . Installed . | . . . . . . . Triggered . | . . . . . . . Machines | -11 -10 -10 -9 -9 -8 -7 ---------- Run | Yrd Mat Min Mat Sto Mat Fac Machines Disabled . | . . . . . . . Max in Single Turn . | . . . . . . . Machines Repaired . | . . . . . . . Machines Dismantled . | . . . . . . . Machines Sabotaged . | . . . . . . . Overloaded Fab Kills . | . . . . . . . Hacking | -11 -10 -10 -9 -9 -8 -7 --------- Run | Yrd Mat Min Mat Sto Mat Fac Machines Accessed 15 | . 3 . 3 5 3 1 Terminals 15 | . 3 . 3 5 3 1 Fabricators . | . . . . . . . Repair Stations . | . . . . . . . Recycling Units . | . . . . . . . Scanalyzers . | . . . . . . . Garrison Access . | . . . . . . . Total Hacks 45 | . 10 . 7 8 17 3 Successful 25 | . 5 . . 5 14 1 Failed 18 | . 4 . 7 3 2 2 Catastrophic 2 | . . . 1 1 . . Database Lockouts 2 | . 1 . . . 1 . Manual 31 | . 7 . 6 4 11 3 Terminals 45 | . 10 . 7 8 17 3 Fabricators . | . . . . . . . Repair Stations . | . . . . . . . Recycling Units . | . . . . . . . Scanalyzers . | . . . . . . . Garrison Access . | . . . . . . . Terminal Hacks 20 | . 4 . . 5 11 . Record 12 | . 4 . . . 8 . Open Door 3 | . . . . 3 . . Level Access Points 1 | . . . . 1 . . Branch Access Points 1 | . . . . . 1 . Unreport Threat 1 | . . . . . 1 . Hauler Manifests 1 | . . . . . 1 . Zone Layout 1 | . . . . 1 . . Fabricator Hacks . | . . . . . . . Repair Station Hacks . | . . . . . . . Recycling Unit Hacks . | . . . . . . . Scanalyzer . | . . . . . . . Garrison Access Hacks . | . . . . . . . Unauthorized Hacks 5 | . 1 . . . 3 1 Terminals 5 | . 1 . . . 3 1 Assimilate 1 | . . . . . . 1 Botnet 2 | . 1 . . . 1 . Operators 1 | . . . . . 1 . Skim 1 | . . . . . 1 . Fabricators . | . . . . . . . Repair Stations . | . . . . . . . Recycling Units . | . . . . . . . Scanalyzers . | . . . . . . . Garrison Access . | . . . . . . . Data Cores Recovered . | . . . . . . . Used . | . . . . . . . Hacking Detections 9 | . 3 . 3 1 1 1 Full Trace Events 5 | . 1 . 2 . 1 1 Feedback Events . | . . . . . . . Feedback Blocked . | . . . . . . . Robot Schematics Acquired . | . . . . . . . Robots Built . | . . . . . . . Authchips . | . . . . . . . Time . | . . . . . . . Total Robot Build Rating . | . . . . . . . Part Schematics Acquired . | . . . . . . . Parts Built . | . . . . . . . Authchips . | . . . . . . . Time . | . . . . . . . Total Part Build Rating . | . . . . . . . Parts Repaired . | . . . . . . . Time . | . . . . . . . Parts Recycled . | . . . . . . . Recycled Matter . | . . . . . . . Retrieved Matter . | . . . . . . . Retrieved Components . | . . . . . . . Parts Scanalyzed . | . . . . . . . Part Schematics Acquired . | . . . . . . . Parts Damaged . | . . . . . . . Bothacking | -11 -10 -10 -9 -9 -8 -7 ------------ Run | Yrd Mat Min Mat Sto Mat Fac Used RIF Installer . | . . . . . . . Robots Hacked . | . . . . . . . Non-combat . | . . . . . . . Combat . | . . . . . . . Robot Hacks Applied . | . . . . . . . Relay Couplers Released . | . . . . . . . Fabnet Peak Effective % . | . . . . . . . Robots Rewired . | . . . . . . . Allies Hacked . | . . . . . . . Hacks Repelled . | . . . . . . . Allies | -11 -10 -10 -9 -9 -8 -7 -------- Run | Yrd Mat Min Mat Sto Mat Fac Total Allies . | . . . . . . . Largest Group . | . . . . . . . Highest-Rated Group . | . . . . . . . Highest-Rated Ally . | . . . . . . . Total Orders . | . . . . . . . Ally Attacks . | . . . . . . . Total Damage . | . . . . . . . Kills . | . . . . . . . Allies Corrupted . | . . . . . . . Allies Melted . | . . . . . . . Intel | -11 -10 -10 -9 -9 -8 -7 ------- Run | Yrd Mat Min Mat Sto Mat Fac Active Infowar (turns) 787 | . . . 588 50 83 66 Sensors 701 | . . . 588 50 63 . Structural 66 | . . . . . . 66 ECM 20 | . . . . . 20 . Robot Analysis Total . | . . . . . . . Derelict Logs Recovered 1 | . . 1 . . . . Drone Launches . | . . . . . . . Drone Recoveries . | . . . . . . . Exploration | -11 -10 -10 -9 -9 -8 -7 ------------- Run | Yrd Mat Min Mat Sto Mat Fac Turns Passed 2582 | 71 528 187 1317 149 262 68 Spaces Moved 2047 | 67 418 200 461 317 407 177 Core 16 | 3 . . 13 . . . Treads 185 | . . . 185 . . . Legs . | . . . . . . . Wheels 894 | 64 418 200 212 . . . Hover . | . . . . . . . Flight 952 | . . . 51 317 407 177 Fastest Speed 31 | 50 90 90 37 37 31 34 Average Speed 72 | 87 90 90 120 37 32 34 Slowest Speed 300 | 90 90 90 300 40 40 34 Overloaded Moves . | . . . . . . . Propulsion Burnouts . | . . . . . . . Robots Hopped 28 | . . . 3 11 12 2 Potential Cave-ins . | . . . . . . . Cave-ins Triggered . | . . . . . . . Exploration Rate (%) 35 | 4 51 53 35 60 37 5 Regions Visited 6 Branch Regions 2 Pre-discovered Areas . | . . . . . . . Known Exits Taken 3 | . . 1 1 1 . . Unknown Exits Taken 3 | 1 1 . . . 1 . Scrap Searched . | . . . . . . . Spaces Dug . | . . . . . . . Terrain Destroyed 21 | . . . . . 21 . Melee . | . . . . . . . Projectile . | . . . . . . . AOE 21 | . . . . . 21 . Terrain Rammed . | . . . . . . . Walls Destroyed . | . . . . . . . Machines Disabled . | . . . . . . . Actions | -11 -10 -10 -9 -9 -8 -7 --------- Run | Yrd Mat Min Mat Sto Mat Fac Total 2947 | 76 504 209 1130 334 513 181 Wait 706 | . 41 . 564 . 101 . Move 1987 | 66 417 199 454 295 383 173 Hop 27 | . . . 3 10 12 2 Pick Up 26 | 4 6 3 5 4 3 1 Fast Attach 21 | 6 1 . 6 3 4 1 Attach 18 | . 1 1 9 1 3 3 Detach 2 | . . . 2 . . . Swap 7 | . . 1 5 . 1 . Drop 13 | . 1 4 5 3 . . Fire 112 | . 33 . 74 . 4 1 Melee 2 | . . . . . 2 . Ram 6 | . 4 1 1 . . . Kick . | . . . . . . . Crush 2 | . . . 2 . . . Escape Stasis 18 | . . . . 18 . . Rewire . | . . . . . . . Trap . | . . . . . . . Miscellaneous . | . . . . . . . Route ------- -11/Scrapyard -10/Materials (discovered 2 exits: *Mat / [*Min]) -10/Mines (discovered 2 exits: *Mat x2) -9/Materials (discovered 3 exits: Min / *Sto x2) -9/Storage -8/Materials -7/Factory History --------- Turn | Location | Event 9 | -11/Scrapyard | Discovered new exit (range 15) 72 | -11/Scrapyard | Entered Materials 201 | -10/Materials | Discovered new exit (range 12) 311 | -10/Materials | Build established: Mutant 431 | -10/Materials | Discovered new exit (range 5) 500 | -10/Materials | Core integrity fell below 50% 585 | -10/Materials | Central database locked down 600 | -10/Materials | Entered Mines 605 | -10/Mines | Learned location of 1 exit from Materials 633 | -10/Mines | Found a Scrap Suit stashed away for nefarious purposes 638 | -10/Mines | Found Scrap Suit 679 | -10/Mines | Discovered new exit (range 13) 691 | -10/Mines | Received a Rocket Launcher from a helpful Derelict 767 | -10/Mines | Discovered new exit (range 12) 776 | -10/Mines | Assembled infested the area 778 | -10/Mines | Identified exit to Materials 787 | -10/Mines | Entered Materials 787 | -9/Materials | Evolved 2 slots: Utility x2 788 | -9/Materials | Identified exit to Mines 1663 | -9/Materials | Discovered new exit (range 14) 1849 | -9/Materials | Destroyed 7 combat bots 2025 | -9/Materials | Discovered new exit (range 14) 2102 | -9/Materials | Identified exit to Storage 2104 | -9/Materials | Entered Storage 2105 | -9/Storage | Core integrity fell below 50% 2187 | -9/Storage | Identified exit to Materials 2249 | -9/Storage | Core integrity fell below 20% 2253 | -9/Storage | Entered Materials 2253 | -8/Materials | Evolved 2 slots: Propulsion x2 2486 | -8/Materials | Lost 5 parts (1n2u2w) 2499 | -8/Materials | Core integrity fell below 50% 2503 | -8/Materials | Discovered new exit (range 11) 2509 | -8/Materials | Central database locked down 2515 | -8/Materials | Entered Factory 2515 | -7/Factory | Evolved 2 slots: Propulsion x1, Utility x1 2544 | -7/Factory | Lost 3 parts (1p2n) 2583 | -7/Factory | Self-destructed Last Messages --------------- 02513_ Imp. Flight Unit destroyed. 02515_ Slammed into G-47 Trooper. PARAMETERS=PROPULSION+1,UTILITY+1 LOCATION=UNKNOWN GOAL=ESCAPE 02528_ T-07 Excavator is excavating. 02530_ O-24 Administrator: "IFF HANDSHAKE FAILED. SECURING TERMINAL." 02530_ ALERT: All DSF locations entering lockdown mode. 02533_ Connecting with Terminal... 02533_ Current location identified: Factory >>Trojan(Assimilate) Trojan loaded successfully. Testing... System interface override in place. 02533_ ALERT: Suspicious activity at Terminal F015. Dispatching Investigation squad. 02537_ Acquired Arc Projector. 02539_ Emergency Access malfunctions. 02547_ Acquired Transmission Jammer. 02571_ Connecting with Terminal... Map ----- +----------------------------------------------------+ | ???????????????????????????????## ### # | | ???????????????????????????????## ### # | | ????????????????????????######### ############ | | ????????????????????????#########+############ | | ????????????????????????## ######## | | ????????????????????????## # | | ????????????????????????##"""""" # | | ????????????????????????##"""""" # | | ????????????????????????##"""""" # | | ??????????????????????????"""""" + """ | | ???????????????????????????""""" # "Y" | | ???????????????????????????""""" # | | ???????????????????????????""""" # | | ???????????????????????????""""" # | | ????????????????????????##"""""" # | | ????????????????????????## # | | ???????????????????#################### | | ???????????????????#################### | | ???????????????????# # ! | | ??????????????????## "" "" "" "" # | | ??????????????????## "" "" "" "" # | | ??????????????????## """ """ """ """ # | | ??????????????????## """ """ """ """ + ###### | | ??????????????????## """ """ """ """ # ###### | | ??????????????????## # ##???? | | ??????????????????## @ [ # ###### | | ??????????????????#######################+######## | | ??????????????????################ # | | ????????????????????????????????## """" # | | ????????????????????????????????## """" # | | ????????????????????????????????## """" # | | ????????????????????????????????## """" "" # | | ????????????????????????????????## """" "" # | | ????????????????????????????????## """" T" # | | ????????????????????????????????## """" "" # | | ????????????????????????????????## "" # | | ????????????????????????????????## # | | ????????????????????????????????################## | | ????????????????????????????????######## | | ?????????????????????????????????????????????????? | | ?????????????????????????????????????????????????? | | ?????????????????????????????????????????????????? | | ?????????????????????????????????????????????????? | | ?????????????????????????????????????????????????? | | ?????????????????????????????????????????????????? | | ?????????????????????????????????????????????????? | | ?????????????????????????????????????????????????? | | ?????????????????????????????????????????????????? | | ?????????????????????????????????????????????????? | | ?????????????????????????????????????????????????? | +----------------------------------------------------+ Best States ------------- Heat Dissipation 34 Energy Generation 12 Energy Capacity 265 Matter Stores 300 Matter Capacity 300 Sight Range 16 Robot Scan Range 15 Terrain Scan Density 10 ECM Strength 1 Armor Coverage 150 Utility Shielding 33 Evasion (%) 63 Recoil Reduction 2 Offensive Hacking 20 Item Schematics ----------------- None Robot Schematics ------------------ None Fabricated ------------ Nothing Repaired ---------- Nothing Alien Tech Used ----------------- None Achievements -------------- Everything Is Under Control Librarian Challenges ------------ None Game ------ Seed RemoteSchematicHammer Manual? 0 Play Time 00:24:39 Cumulative 29.2 hours Start 2025.10.09 @ 21:08:23 End 2025.10.09 @ 21:31:53 Sessions 1 Manual Loads 0 Difficulty Rogue Special Mode None Game No. 79 Rogue 72 Adventurer 7 Explorer 0 Win Type - Total 0 Types 0/0/0/0/0/0/0/0/0/0 Lore% 6 Gallery% 26 Achievement% 27 Wizard Run 0 Options --------- Layout 0 ASCII 0 Keyboard 1 Movement Vi Keybinds 0 Fullscreen 1 Font 18/SmallcapsGlow Map View 76x50 Zoom Use 0% Tactical HUD 1 Map Filters NONE Filters NONE Steam X RUN: f6d98415-d40d-42f1-a84d-34409c9ffb9a